bitfinex/quotes_BTCUSD_20240715
["timestamp","ask_amount","ask_price","bid_price","bid_amount"]
[1721019674758,2.7013175,62752.0,62751.0,0.002913]
[1721019674984,0.88930436,62739.0,62731.0,0.791]
[1721019675236,0.20151349,62731.0,62730.0,0.143471]
[1721019675439,0.18288018,62731.0,62730.0,0.143471]
[1721019675667,0.27234431,62731.0,62730.0,0.143471]
[1721019676220,0.20151349,62728.0,62727.0,0.5371]
[1721019676590,0.22601732,62728.0,62727.0,0.5371]
[1721019676818,0.29765074,62728.0,62727.0,0.5371]
[1721019676989,0.2737631,62728.0,62727.0,0.5371]
[1721019677830,0.2737631,62728.0,62727.0,0.4771]
[1721019678288,0.22701732,62728.0,62727.0,0.4801]
[1721019678508,0.2757631,62728.0,62727.0,0.4781]
[1721019678649,0.2747631,62728.0,62727.0,0.4781]
[1721019678856,0.2747631,62728.0,62727.0,0.4811]
[1721019678857,0.22801732,62728.0,62727.0,0.4811]
[1721019679102,0.22701732,62728.0,62727.0,0.4801]
[1721019679731,0.22745833,62728.0,62727.0,0.003]
[1721019680332,0.22845833,62728.0,62727.0,0.004]
[1721019682161,0.02694484,62728.0,62727.0,0.004]
[1721019682403,0.1389942,62728.0,62727.0,0.434435]
[1721019682760,0.02694484,62728.0,62727.0,0.434435]
[1721019682970,0.002,62728.0,62727.0,0.004]
[1721019683181,0.13866695,62728.0,62727.0,0.004]
[1721019683572,0.13866635,62728.0,62727.0,0.004]
[1721019683986,0.37160648,62728.0,62727.0,0.004]
[1721019684191,1.16227387,62728.0,62727.0,0.004]
[1721019684410,0.65855948,62728.0,62727.0,0.004]
[1721019684784,0.81529407,62728.0,62727.0,0.004]
[1721019685026,0.72932518,62728.0,62727.0,0.004]
[1721019685201,0.34499649,62725.0,62724.0,0.000913]
[1721019685422,0.36743962,62725.0,62724.0,0.000913]
[1721019685819,0.41512247,62725.0,62724.0,0.000913]
[1721019686190,0.36713087,62725.0,62724.0,0.000913]
[1721019686583,0.02213438,62725.0,62724.0,0.000913]
[1721019687026,0.001,62725.0,62724.0,0.001913]
[1721019687356,0.11304936,62725.0,62724.0,0.001913]
[1721019687694,0.001,62725.0,62724.0,0.001913]
[1721019687908,0.002,62725.0,62724.0,0.149398]
[1721019689528,0.20351349,62725.0,62724.0,0.149398]
[1721019689733,0.11404936,62725.0,62724.0,0.149398]
[1721019690620,0.002,62725.0,62724.0,0.149398]
[1721019691455,0.20351349,62725.0,62724.0,0.149398]
[1721019691880,0.20082699,62725.0,62724.0,0.149398]
[1721019693481,0.20082699,62725.0,62724.0,0.005913]
[1721019693681,0.20063519,62725.0,62724.0,0.005913]
[1721019693882,0.34411819,62725.0,62724.0,0.005913]
[1721019694715,0.97805019,62725.0,62724.0,0.005913]
[1721019694916,1.03393853,62725.0,62724.0,0.005913]
[1721019695616,1.03393853,62725.0,62724.0,0.004913]
[1721019695840,0.97536369,62725.0,62724.0,0.004913]
[1721019696048,1.03055531,62725.0,62724.0,0.004913]
[1721019696244,0.91536369,62725.0,62724.0,0.004913]
[1721019696475,1.03044609,62725.0,62724.0,0.004913]
[1721019696603,1.03044609,62725.0,62724.0,0.000913]
[1721019697003,1.03044609,62725.0,62724.0,0.004913]
[1721019697004,1.03716868,62725.0,62724.0,0.004913]
[1721019697206,0.98955862,62725.0,62724.0,0.000913]
[1721019697412,0.98855862,62725.0,62724.0,0.000913]
[1721019697607,0.99800277,62725.0,62724.0,0.004913]
[1721019697836,0.22650537,62725.0,62724.0,0.004913]
[1721019698819,0.22664759,62725.0,62724.0,0.004913]
[1721019698999,0.22664935,62725.0,62724.0,0.004913]
[1721019699198,0.37013235,62725.0,62724.0,0.004913]
[1721019699807,0.22664935,62725.0,62724.0,0.004913]
[1721019700346,0.19510039,62725.0,62724.0,0.004913]
[1721019700522,0.19510039,62725.0,62724.0,0.001913]
[1721019700724,0.28099972,62725.0,62724.0,0.001913]
[1721019700947,0.42548272,62725.0,62724.0,0.006913]
[1721019701303,0.07460688,62725.0,62724.0,0.86344]
[1721019701473,0.01925651,62725.0,62724.0,0.576469]
[1721019702237,0.01825651,62725.0,62724.0,0.571469]
[1721019702439,0.11204936,62730.0,62727.0,0.143478]
[1721019702740,0.07587797,62729.0,62727.0,0.142478]
[1721019702945,0.07281444,62728.0,62727.0,0.142478]
[1721019703475,0.11204936,62730.0,62728.0,0.143476]
[1721019703681,0.11204936,62730.0,62725.0,0.286964]
[1721019703682,0.11304935,62733.0,62732.0,0.143465]
[1721019703878,0.01892283,62733.0,62732.0,0.143465]
[1721019704086,0.01892283,62733.0,62732.0,0.798833]
[1721019704299,0.01792284,62733.0,62732.0,1.084767]
[1721019704500,0.08589933,62740.0,62732.0,1.084767]
[1721019704501,0.11503746,62737.0,62736.0,0.286916]
[1721019704677,0.02055547,62737.0,62736.0,0.430374]
[1721019704879,0.01756737,62737.0,62736.0,0.429374]
[1721019705080,0.0092216,62740.0,62737.0,0.143455]
[1721019705432,0.01790662,62739.0,62737.0,0.143455]
[1721019705629,0.01790662,62739.0,62738.0,0.143453]
[1721019706082,0.01790345,62739.0,62738.0,0.0633]
[1721019706288,0.08589933,62744.0,62743.0,0.286884]
[1721019706289,0.00306353,62744.0,62743.0,0.286884]
[1721019706459,0.02082679,62744.0,62743.0,0.430326]
[1721019706789,0.01776326,62744.0,62743.0,0.430326]
[1721019706963,0.11204936,62747.0,62745.0,0.143437]
[1721019707218,0.12980916,62746.0,62745.0,0.143437]
[1721019707386,0.0177598,62746.0,62745.0,0.430312]
[1721019707619,0.0177598,62746.0,62745.0,0.429312]
[1721019707766,0.0177598,62746.0,62745.0,0.428312]
[1721019708167,0.0476505,62751.0,62747.0,0.143432]
[1721019708371,0.01697452,62750.0,62747.0,0.142432]
[1721019708775,0.19794869,62748.0,62747.0,0.142432]
[1721019708979,0.01697456,62748.0,62747.0,0.141432]
[1721019709140,0.19794869,62748.0,62747.0,0.140432]
[1721019709354,0.21492325,62748.0,62747.0,0.140432]
[1721019710606,0.21492325,62748.0,62747.0,0.144432]
[1721019710808,0.21492325,62748.0,62747.0,0.147432]
[1721019711053,0.21492325,62748.0,62747.0,0.143432]
[1721019711263,0.21492325,62748.0,62747.0,0.149432]
[1721019713913,0.01697456,62748.0,62747.0,0.149432]
[1721019714122,0.21492325,62748.0,62747.0,0.149432]
[1721019715273,0.21529806,62748.0,62747.0,0.149432]
[1721019715706,0.21529807,62748.0,62747.0,0.149432]
[1721019716780,0.12939874,62748.0,62747.0,0.149432]
[1721019716951,0.12939874,62748.0,62747.0,0.859364]
[1721019716952,0.01734938,62748.0,62747.0,0.859364]
[1721019717157,0.01756685,62750.0,62749.0,0.430285]
[1721019717388,0.01756636,62750.0,62749.0,0.430285]
[1721019717761,0.01756581,62751.0,62749.0,0.286857]
[1721019717982,0.01756581,62750.0,62749.0,0.430285]
[1721019718191,0.12961517,62750.0,62749.0,0.430285]
[1721019718480,0.11204936,62750.0,62749.0,0.430285]
[1721019718761,0.13084457,62750.0,62749.0,0.430285]
[1721019720688,0.01879521,62750.0,62749.0,0.718142]
[1721019720862,0.01010417,62752.0,62749.0,0.291857]
[1721019721077,0.00083,62752.0,62751.0,0.71712]
[1721019721272,0.00083,62752.0,62751.0,1.143468]
[1721019721836,0.00083,62752.0,62751.0,1.51826664]
[1721019722080,0.00283,62752.0,62751.0,1.430316]
[1721019722488,0.00383,62752.0,62751.0,1.438316]
[1721019723563,0.00183,62752.0,62751.0,1.438316]
[1721019723939,0.00183,62752.0,62751.0,1.436316]
[1721019724142,0.00183,62752.0,62751.0,1.450316]
[1721019724326,0.00083,62752.0,62751.0,1.444316]
[1721019724545,0.00083,62752.0,62751.0,1.430316]
[1721019724744,0.00183,62752.0,62751.0,1.451316]
[1721019724960,0.00183,62752.0,62751.0,1.437316]
[1721019725155,0.00083,62752.0,62751.0,1.51826664]
[1721019725360,0.00083,62752.0,62751.0,1.53226664]
[1721019725642,0.00183,62752.0,62751.0,1.437316]
[1721019726827,0.00083,62752.0,62751.0,1.430316]
[1721019727244,0.00183,62752.0,62751.0,1.450316]
[1721019727460,0.00183,62752.0,62751.0,1.436316]
[1721019727585,0.00083,62752.0,62751.0,1.430316]
[1721019727794,0.00063,62752.0,62751.0,1.444316]
[1721019727995,0.00113,62752.0,62751.0,1.436316]
[1721019728196,0.00113,62752.0,62751.0,1.450316]
[1721019728414,0.00013,62752.0,62751.0,1.444316]
[1721019728625,3e-05,62752.0,62751.0,1.444316]
[1721019728897,0.01659652,62764.0,62763.0,0.429189]
[1721019729047,0.01629652,62764.0,62763.0,0.429189]
[1721019729510,0.01619652,62764.0,62763.0,1.002775]
[1721019729717,0.14463,62775.0,62765.0,0.286784]
[1721019729718,0.19060936,62775.0,62765.0,0.286784]
[1721019729870,0.19060936,62775.0,62773.0,0.143373]
[1721019730070,0.19060936,62775.0,62771.0,0.286755]
[1721019730071,0.12145453,62775.0,62774.0,0.143371]
[1721019730567,0.01007517,62775.0,62774.0,0.429113]
[1721019730952,0.11137936,62773.0,62772.0,0.143373]
[1721019731158,0.11137936,62773.0,62768.0,0.0655]
[1721019731159,0.19727869,62770.0,62768.0,0.143384]
[1721019731363,0.11137936,62769.0,62768.0,0.143384]
[1721019731526,0.11137936,62768.0,62767.0,0.143387]
[1721019731884,0.19727869,62765.0,62764.0,0.143394]
[1721019732092,0.08589933,62757.0,62754.0,0.0619]
[1721019732294,0.0631,62762.0,62751.0,0.286847]
[1721019732295,0.19727869,62753.0,62751.0,0.286847]
[1721019732494,0.11137936,62754.0,62753.0,0.143419]
[1721019732646,0.11137936,62754.0,62753.0,0.430257]
[1721019732842,0.143407,62759.0,62750.0,0.06255]
[1721019732843,0.11137936,62758.0,62750.0,0.06255]
[1721019733139,0.11137936,62758.0,62757.0,0.14341]
[1721019733745,0.11220936,62758.0,62757.0,0.14341]
[1721019734123,0.11137936,62751.0,62750.0,0.06255]
[1721019734324,0.69275069,62751.0,62750.0,0.00065]
[1721019734540,1.03959869,62751.0,62750.0,0.00065]
[1721019735350,1.38007654,62751.0,62750.0,0.00865]
[1721019735555,1.72442076,62751.0,62750.0,0.02265]
[1721019735814,2.01126876,62751.0,62750.0,0.00865]
[1721019736235,1.10957276,62751.0,62750.0,0.00865]
[1721019736567,1.10857276,62751.0,62750.0,0.00065]
[1721019736986,1.10957276,62751.0,62750.0,0.00065]
[1721019737315,1.10957276,62751.0,62750.0,0.00265]
[1721019737544,1.11802557,62751.0,62750.0,0.00065]
[1721019737751,1.12702557,62751.0,62750.0,0.00065]
[1721019738074,0.50069972,62751.0,62750.0,0.00065]
[1721019738295,0.3513315,62751.0,62750.0,0.00065]
[1721019738527,0.3531555,62751.0,62750.0,0.00065]
[1721019738731,0.6370035,62751.0,62750.0,0.00065]
[1721019739107,0.6370035,62751.0,62750.0,0.00265]
[1721019739440,0.65231155,62751.0,62750.0,0.00265]
[1721019739615,0.65331155,62751.0,62750.0,0.00265]
[1721019740042,0.65331406,62751.0,62750.0,0.00265]
[1721019740481,0.65331406,62751.0,62750.0,0.00065]
[1721019740653,0.22304206,62751.0,62750.0,0.00065]
[1721019740882,0.22304206,62751.0,62750.0,0.00365]
[1721019741441,0.22304206,62751.0,62750.0,0.00065]
[1721019741639,0.22204206,62751.0,62750.0,0.144076]
[1721019741817,0.22204206,62751.0,62750.0,0.146076]
[1721019742020,0.22204206,62751.0,62750.0,0.00065]
[1721019742232,0.93916206,62751.0,62750.0,0.00065]
[1721019742429,0.93916206,62751.0,62750.0,0.00365]
[1721019743268,0.9238515,62751.0,62750.0,0.00365]
[1721019743464,0.94012504,62751.0,62750.0,0.00365]
[1721019743679,0.93996581,62751.0,62750.0,0.00365]
[1721019743995,0.93996581,62751.0,62750.0,0.00065]
[1721019744195,0.94096581,62751.0,62750.0,0.00765]
[1721019744342,0.94096581,62751.0,62750.0,0.00465]
[1721019744541,1.00316581,62751.0,62750.0,0.00465]
[1721019744766,1.06316581,62751.0,62750.0,0.00365]
[1721019744980,1.14326581,62751.0,62750.0,0.00365]
[1721019746145,1.02072136,62751.0,62750.0,0.00365]
[1721019746552,1.02074241,62751.0,62750.0,0.00365]
[1721019747070,1.30759041,62751.0,62750.0,0.00365]
[1721019748982,1.46106571,62751.0,62750.0,0.00365]
[1721019749183,1.53255653,62751.0,62750.0,0.00365]
[1721019749339,1.42869041,62751.0,62750.0,0.00365]
[1721019749553,1.50025252,62751.0,62750.0,0.00365]
[1721019749814,1.4128995,62751.0,62750.0,0.00365]
[1721019750049,1.50042592,62751.0,62750.0,0.00365]
[1721019750241,1.86877156,62751.0,62750.0,0.00365]
[1721019750390,2.3003167,62751.0,62750.0,0.00365]
[1721019750711,2.54343933,62751.0,62750.0,0.00365]
[1721019751058,2.50989419,62751.0,62750.0,0.00065]
[1721019751465,2.50989419,62751.0,62750.0,1e-08]
[1721019751466,2.51389419,62751.0,62750.0,1e-08]
[1721019751671,2.16145269,62748.0,62747.0,0.000913]
[1721019752032,2.16145269,62748.0,62727.0,0.4771]
[1721019752033,0.62770769,62728.0,62727.0,0.4771]
[1721019752235,0.19727869,62725.0,62724.0,0.064313]
[1721019752368,0.2132438,62725.0,62724.0,0.064313]
[1721019752964,0.19727869,62725.0,62724.0,0.064313]
[1721019753508,0.35666176,62725.0,62724.0,0.000913]
[1721019753878,0.93059376,62725.0,62724.0,0.000913]
[1721019754027,1.27736796,62725.0,62724.0,0.000913]
[1721019754835,0.93140196,62725.0,62724.0,0.014913]
[1721019755053,0.93140196,62725.0,62724.0,0.000913]
[1721019755054,0.93040196,62725.0,62724.0,0.000913]
[1721019755261,0.93140196,62725.0,62724.0,0.008913]
[1721019755459,0.93140196,62725.0,62724.0,0.013913]
[1721019756196,0.91550189,62725.0,62724.0,0.013913]
[1721019756518,0.9312518,62725.0,62724.0,0.013913]
[1721019756722,1.2182178,62725.0,62724.0,0.013913]
[1721019756863,0.9912518,62725.0,62724.0,0.013913]
[1721019757072,1.1360518,62725.0,62724.0,0.013913]
[1721019758207,1.4230178,62725.0,62724.0,0.013913]
[1721019759193,1.40726789,62725.0,62724.0,0.013913]
[1721019759398,1.42283297,62725.0,62724.0,0.013913]
[1721019762071,1.58496357,62725.0,62724.0,0.013913]
[1721019762481,1.87251735,62725.0,62724.0,0.013913]
[1721019762634,1.92004742,62725.0,62724.0,0.013913]
[1721019762837,1.8037217,62725.0,62724.0,0.013913]
[1721019763022,2.11904793,62725.0,62724.0,0.005913]
[1721019763218,2.07151845,62725.0,62724.0,0.005913]
[1721019763477,2.07151845,62725.0,62724.0,0.006913]
[1721019763631,2.13951845,62725.0,62724.0,0.006913]
[1721019763841,2.18878902,62725.0,62724.0,0.006913]
[1721019764036,2.13951845,62725.0,62724.0,0.001913]
[1721019764508,2.14151845,62725.0,62724.0,0.001913]
[1721019764711,2.34151845,62725.0,62724.0,0.000913]
[1721019764927,2.34251845,62725.0,62724.0,0.000913]
[1721019765175,2.34851845,62725.0,62724.0,0.000913]
[1721019766990,2.14851845,62725.0,62724.0,0.000913]
[1721019767991,2.34851845,62725.0,62724.0,0.000913]
[1721019768663,2.34851845,62725.0,62724.0,0.00069512]
[1721019768864,2.34406632,62725.0,62724.0,0.00069512]
[1721019771655,2.09329971,62725.0,62724.0,0.00069512]
[1721019771973,2.0797217,62725.0,62724.0,0.00069512]
[1721019772170,2.09303486,62725.0,62724.0,0.00069512]
[1721019772369,2.0797217,62725.0,62724.0,0.00069512]
[1721019772587,2.0930341,62725.0,62724.0,0.00069512]
[1721019774460,1.8060681,62725.0,62724.0,0.00069512]
[1721019774689,2.0340681,62725.0,62724.0,0.00069512]
[1721019775143,2.0207557,62725.0,62724.0,0.00069512]
[1721019775355,2.03433185,62725.0,62724.0,0.00069512]
[1721019776443,2.32129785,62725.0,62724.0,0.00069512]
[1721019776644,2.52129785,62725.0,62724.0,0.00069512]
[1721019777271,2.57182045,62725.0,62724.0,0.00069512]
[1721019777471,2.28485445,62725.0,62724.0,0.00069512]
[1721019777671,2.08485445,62725.0,62724.0,0.00069512]
[1721019778077,2.57182045,62725.0,62724.0,0.00069512]
[1721019778521,2.5579316,62725.0,62724.0,0.00069512]
[1721019778655,2.62114147,62725.0,62724.0,0.00069512]
[1721019779017,2.33417547,62725.0,62724.0,0.00069512]
[1721019779365,2.62114147,62725.0,62724.0,0.00069512]
[1721019781039,2.62114147,62725.0,62703.0,0.08105238]
[1721019781040,0.40060889,62708.0,62707.0,0.073963]
[1721019781191,0.40060889,62708.0,62707.0,0.009163]
[1721019781192,0.70074476,62708.0,62707.0,0.009163]
[1721019781396,1.27483276,62708.0,62707.0,0.009163]
[1721019781598,1.2748385,62708.0,62707.0,0.009163]
[1721019782432,1.2758385,62708.0,62707.0,0.009163]
[1721019782633,1.2768385,62708.0,62707.0,0.019163]
[1721019784071,1.26374089,62708.0,62707.0,0.019163]
[1721019784220,1.21684083,62708.0,62707.0,0.019163]
[1721019785127,0.35570883,62708.0,62707.0,0.019163]
[1721019785436,0.64275283,62708.0,62707.0,0.099063]
[1721019787070,0.64275283,62708.0,62707.0,0.09906261]
[1721019787472,0.64258264,62708.0,62707.0,0.09906261]
[1721019788116,0.65217027,62708.0,62707.0,0.09906261]
[1721019788899,0.65217027,62708.0,62707.0,0.01916261]
[1721019789551,0.71217027,62708.0,62707.0,0.01916261]
[1721019789775,0.99921427,62708.0,62707.0,0.01916261]
[1721019790364,1.14497578,62708.0,62707.0,0.01916261]
[1721019790565,1.14499925,62708.0,62707.0,0.01916261]
[1721019790945,0.93923774,62708.0,62707.0,0.01916261]
[1721019791144,0.98953538,62708.0,62707.0,0.01916261]
[1721019793690,0.92628452,62708.0,62707.0,0.01916261]
[1721019794067,0.99005597,62708.0,62707.0,0.01916261]
[1721019794234,0.98999596,62708.0,62707.0,0.01916261]
[1721019795148,0.24667843,62708.0,62707.0,0.01916261]
[1721019795342,0.01526465,62708.0,62707.0,0.87818461]
[1721019795515,0.01526465,62708.0,62707.0,1.16523361]
[1721019795721,0.01526465,62708.0,62707.0,1.1757061]
[1721019796649,0.002,62708.0,62707.0,1.1757061]
[1721019797223,0.01404318,62708.0,62707.0,1.1757061]
[1721019797401,0.01304318,62708.0,62707.0,1.1657061]
[1721019797608,0.11137936,62713.0,62711.0,0.43073]
[1721019797789,0.01304264,62712.0,62711.0,0.574245]
[1721019798406,0.01304264,62712.0,62711.0,0.573245]
[1721019798834,0.01304264,62712.0,62711.0,0.860275]
[1721019799265,0.01404264,62712.0,62711.0,0.868275]
[1721019799460,0.01404264,62712.0,62711.0,1.155305]
[1721019799924,0.01404264,62712.0,62711.0,1.166305]
[1721019800331,0.01419131,62712.0,62711.0,1.166305]
[1721019802986,0.01502131,62712.0,62711.0,1.166305]
[1721019803317,0.00183,62712.0,62711.0,1.166305]
[1721019803523,0.01513858,62712.0,62711.0,1.166305]
[1721019803963,0.01497348,62712.0,62711.0,1.166305]
[1721019804148,0.06273153,62712.0,62711.0,0.879275]
[1721019805165,0.01497348,62712.0,62711.0,0.879275]
[1721019805329,0.00183,62712.0,62711.0,0.879275]
[1721019805702,0.01440054,62712.0,62711.0,0.879275]
[1721019806211,0.08597808,62712.0,62711.0,0.879275]
[1721019806697,0.00183,62712.0,62711.0,0.879275]
[1721019806901,0.08597588,62712.0,62711.0,0.879275]
[1721019809514,0.30694741,62712.0,62711.0,0.019]
[1721019809743,0.33083206,62712.0,62711.0,0.162515]
[1721019810097,0.33019535,62712.0,62711.0,0.162515]
[1721019810480,0.21077838,62712.0,62711.0,0.162515]
[1721019810884,0.21077838,62712.0,62711.0,0.019]
[1721019811088,0.32102868,62712.0,62711.0,0.019]
[1721019811293,1.17749368,62712.0,62711.0,0.019]
[1721019811696,0.25952868,62712.0,62711.0,0.019]
[1721019813455,0.17382115,62712.0,62711.0,0.019]
[1721019813765,0.19891689,62712.0,62711.0,0.019]
[1721019813893,0.25931458,62712.0,62711.0,0.019]
[1721019814104,0.17341513,62712.0,62711.0,0.162515]
[1721019814922,0.06203577,62712.0,62711.0,0.162515]
[1721019815127,0.25912266,62712.0,62711.0,0.162515]
[1721019816574,0.26856774,62712.0,62711.0,0.162515]
[1721019816706,0.26856774,62712.0,62711.0,0.449545]
[1721019816707,0.07148085,62712.0,62711.0,0.449545]
[1721019816915,0.06214511,62712.0,62711.0,0.449545]
[1721019817561,0.17352447,62712.0,62711.0,0.449545]
[1721019818404,0.259232,62712.0,62711.0,0.449545]
[1721019819158,0.199232,62712.0,62711.0,0.449545]
[1721019819365,0.37859902,62712.0,62711.0,0.449545]
[1721019819784,0.37846462,62712.0,62711.0,0.449545]
[1721019820740,0.29275709,62712.0,62711.0,0.449545]
[1721019821112,0.29275709,62712.0,62711.0,0.44873278]
[1721019822067,0.18137773,62712.0,62711.0,0.44873278]
[1721019822740,0.18137773,62712.0,62711.0,0.73576278]
[1721019823078,0.12100087,62712.0,62711.0,0.73576278]
[1721019823289,0.181902,62712.0,62711.0,0.73576278]
[1721019823493,0.18190584,62712.0,62711.0,0.73576278]
[1721019824533,0.37899273,62712.0,62711.0,0.73576278]
[1721019825190,0.37899273,62712.0,62711.0,0.44873278]
[1721019825439,0.0134683,62712.0,62711.0,1.16699278]
[1721019825583,0.00163808,62712.0,62711.0,1.76564342]
[1721019825768,0.00163808,62712.0,62711.0,1.89759342]
[1721019825962,0.11936622,62734.0,62733.0,0.856425]
[1721019825963,0.04774758,62734.0,62733.0,0.856425]
[1721019826161,0.00957977,62742.0,62740.0,0.143449]
[1721019826385,0.36358278,62741.0,62740.0,0.143449]
[1721019826585,0.12130713,62741.0,62740.0,0.4376746]
[1721019826926,0.12130713,62741.0,62740.0,0.7245726]
[1721019827335,0.19289128,62741.0,62740.0,0.7245726]
[1721019827467,0.00992777,62741.0,62740.0,1.0114706]
[1721019827669,0.00992777,62741.0,62740.0,1.0104706]
[1721019828014,0.00992777,62741.0,62740.0,1.01406931]
[1721019828169,0.01004202,62742.0,62740.0,0.29782431]
[1721019828381,0.01104202,62741.0,62740.0,0.45027331]
[1721019828609,0.01104202,62741.0,62740.0,0.73717131]
[1721019829025,0.01004202,62741.0,62740.0,0.72817131]
[1721019829251,0.04769264,62744.0,62743.0,0.143442]
[1721019829454,0.1209083,62745.0,62744.0,0.43032]
[1721019829592,0.1209083,62745.0,62744.0,0.44123028]
[1721019829593,0.13083748,62745.0,62744.0,0.44123028]
[1721019829800,0.21654501,62745.0,62744.0,0.00727352]
[1721019830026,0.26419445,62745.0,62744.0,0.14344]
[1721019830223,0.26419445,62745.0,62744.0,0.15433519]
[1721019830478,0.21654501,62745.0,62744.0,0.15433519]
[1721019830622,0.21654501,62745.0,62744.0,0.01089519]
[1721019830823,0.11137936,62734.0,62728.0,0.0819]
[1721019831089,0.11137936,62734.0,62733.0,0.143465]
[1721019831678,0.11137936,62734.0,62733.0,0.15075919]
[1721019832018,0.11237936,62734.0,62733.0,0.15075919]
[1721019832478,0.11137936,62734.0,62733.0,0.15075919]
[1721019832645,0.49407692,62734.0,62733.0,0.00729419]
[1721019832863,0.78100192,62734.0,62733.0,0.014]
[1721019833071,0.77107389,62734.0,62733.0,0.014]
[1721019833238,0.78100181,62734.0,62733.0,0.014]
[1721019833665,0.19708689,62730.0,62729.0,0.143473]
[1721019833864,0.20701481,62730.0,62729.0,0.143473]
[1721019834747,0.20801481,62730.0,62729.0,0.155473]
[1721019834949,0.001,62730.0,62729.0,0.442421]
[1721019835175,0.001,62730.0,62729.0,0.729369]
[1721019835514,0.001,62730.0,62729.0,1.155217]
[1721019835628,0.001,62730.0,62729.0,1.15613]
[1721019836462,0.002,62730.0,62729.0,1.17013]
[1721019837849,0.002,62730.0,62729.0,0.883182]
[1721019838403,0.19908689,62730.0,62729.0,0.170386]
[1721019838809,0.19908689,62730.0,62729.0,0.457334]
[1721019839521,0.19908689,62730.0,62729.0,0.170386]
[1721019840478,0.19908689,62730.0,62729.0,0.026913]
[1721019842654,0.11337936,62730.0,62729.0,0.170387]
[1721019844292,0.002,62730.0,62729.0,0.170387]
[1721019844685,0.002,62730.0,62729.0,0.804283]
[1721019844879,0.002,62730.0,62729.0,0.887383]
[1721019845885,0.002,62730.0,62729.0,0.600435]
[1721019846433,0.002,62730.0,62729.0,0.457335]
[1721019847368,0.19908689,62730.0,62729.0,0.457335]
[1721019847523,0.19908689,62730.0,62729.0,0.026913]
[1721019847726,0.20900505,62730.0,62729.0,0.026913]
[1721019847973,0.19908689,62730.0,62729.0,0.026913]
[1721019848176,0.002,62730.0,62729.0,0.026913]
[1721019848332,0.002,62730.0,62729.0,0.457335]
[1721019848803,0.11337936,62730.0,62729.0,0.457335]
[1721019849011,0.19908689,62730.0,62729.0,0.170387]
[1721019849879,0.002,62730.0,62729.0,0.885483]
[1721019850079,0.002,62730.0,62729.0,1.400431]
[1721019851933,0.002,62730.0,62729.0,1.172431]
[1721019852132,0.11337936,62730.0,62729.0,0.598535]
[1721019852350,0.11337936,62730.0,62729.0,0.522935]
[1721019852524,0.11337936,62730.0,62729.0,0.809883]
[1721019852751,0.11337936,62730.0,62729.0,0.522935]
[1721019852947,0.11337936,62730.0,62729.0,0.457335]
[1721019853308,0.20899505,62730.0,62729.0,0.026913]
[1721019853515,0.63941105,62730.0,62729.0,0.026913]
[1721019854454,0.62950289,62730.0,62729.0,0.026913]
[1721019854654,0.63940546,62730.0,62729.0,0.026913]
[1721019854856,0.72110546,62730.0,62729.0,0.026913]
[1721019855062,0.72110522,62730.0,62729.0,0.026913]
[1721019856086,1.07234922,62730.0,62729.0,0.026913]
[1721019856292,1.73464502,62730.0,62729.0,0.026913]
[1721019856530,2.06903269,62730.0,62729.0,0.026913]
[1721019856721,2.02158902,62730.0,62729.0,0.026913]
[1721019857231,2.02158902,62730.0,62729.0,0.014913]
[1721019857232,1.12787503,62730.0,62729.0,0.014913]
[1721019857437,1.12687503,62730.0,62729.0,0.002913]
[1721019857641,1.1298209,62730.0,62729.0,0.002913]
[1721019857959,1.18899047,62730.0,62729.0,0.006913]
[1721019858161,1.18899047,62730.0,62729.0,0.000913]
[1721019858365,1.19199047,62730.0,62729.0,0.000913]
[1721019858509,1.13199047,62730.0,62729.0,0.001913]
[1721019859362,0.84504647,62730.0,62729.0,0.001913]
[1721019859699,0.84504647,62730.0,62729.0,0.000913]
[1721019859896,1.19199047,62730.0,62729.0,0.000913]
[1721019860245,1.18899047,62730.0,62729.0,0.002913]
[1721019860463,1.26115812,62730.0,62729.0,0.000913]
[1721019860855,1.26115812,62730.0,62729.0,0.003913]
[1721019861097,1.26058513,62730.0,62729.0,0.000913]
[1721019861348,1.26058513,62730.0,62729.0,0.002913]
[1721019861349,1.28430637,62730.0,62729.0,0.002913]
[1721019861877,1.28430637,62730.0,62729.0,0.000913]
[1721019862126,1.83945037,62730.0,62729.0,0.000913]
[1721019862425,1.83945037,62730.0,62718.0,0.4771]
[1721019862426,0.99487189,62719.0,62718.0,0.4771]
[1721019862636,0.286999,62718.0,62711.0,0.143514]
[1721019862839,0.19708689,62712.0,62711.0,0.143514]
[1721019862983,0.20779666,62712.0,62711.0,0.143514]
[1721019864128,0.19708689,62712.0,62711.0,0.143514]
[1721019864330,0.19708689,62712.0,62711.0,0.157514]
[1721019864331,0.208405,62712.0,62711.0,0.157514]
[1721019864528,0.19808689,62712.0,62711.0,0.157514]
[1721019864733,0.20840494,62712.0,62711.0,0.157514]
[1721019864931,0.20840494,62712.0,62711.0,0.014]
[1721019865603,0.19908689,62712.0,62711.0,0.023]
[1721019865738,0.2093142,62712.0,62711.0,0.023]
[1721019865934,0.2083142,62712.0,62711.0,0.014]
[1721019866367,0.2093142,62712.0,62711.0,0.022]
[1721019866765,0.2083142,62712.0,62711.0,0.008]
[1721019867042,0.11237936,62712.0,62711.0,0.151515]
[1721019867252,0.20913317,62712.0,62711.0,0.452545]
[1721019867666,0.20913289,62712.0,62711.0,0.452545]
[1721019868519,0.20913289,62712.0,62711.0,0.165515]
[1721019868718,0.20913289,62712.0,62711.0,0.166428]
[1721019868835,0.12342536,62712.0,62711.0,0.453458]
[1721019869192,0.012046,62712.0,62711.0,0.536258]
[1721019869943,0.012046,62712.0,62711.0,0.884188]
[1721019870956,0.012046,62712.0,62711.0,0.870188]
[1721019870957,0.01241271,62712.0,62711.0,0.870188]
[1721019871350,0.12479207,62712.0,62711.0,0.884188]
[1721019871530,0.01341271,62712.0,62711.0,0.884188]
[1721019872115,0.01241271,62712.0,62711.0,0.876188]
[1721019872521,0.12479207,62712.0,62711.0,0.884188]
[1721019872698,0.01341271,62712.0,62711.0,0.884188]
[1721019874344,0.002,62712.0,62711.0,1.171218]
[1721019874791,0.00180817,62712.0,62711.0,1.171218]
[1721019877415,0.01296028,62712.0,62711.0,1.171218]
[1721019877631,0.00180817,62712.0,62711.0,1.171218]